Workbook

Sheet FlieglModell
A1: megnevezés | B1: érték | C1: ME | D1: megjegyzés | I1: Ta | J1: e1 | K1: e2 | L1: na.
A2: környezeti levegő átlaghőmérséklet | B2: 10 | C2: °C | I2: -5 | J2: 0.414 | K2: 0 | L2: 127
A3: környezeti levegő átlagos páratartalom | B3: 70 | C3: % | I3: 0 | J3: 0.597 | K3: 0.155 | L3: 203
A4: abszolút környezeti levegő nyomás | B4: 101325 | C4: Pa | I4: 5 | J4: 0.754 | K4: 0.477 | L4: 292
A5: telítési gőznyomás | B5: =EXP((-5.1663007-0.0090035053*B2+0.00004386158*B2^2+0.0000056980777*B2^3)/(1+0.016715628*B2+0.0001670544*B2^2+0.00000046505309*B2^3))*100000 -> 1191.766998 | C5: Pa | D5: Tkörny | I5: 10 | J5: 0.879 | K5: 0.735 | L5: 394
A6: környezeti levegő abszolút nedvesség | B6: =(18/29)*B3/100*B5/(B4-B3/100*B5) -> 0.00515273441 | C6: kg/kg | I6: 15 | J6: 0.972 | K6: 0.93 | L6: 508
A7: környezeti levegő entalpia | B7: =B2+B6*2500 -> 22.88183603 | C7: kJ/kg | I7: 20 | J7: 1.04 | K7: 1.07 | L7: 582
I8: 25 | J8: 1.1 | K8: 1.2 | L8: 618
A9: max. motorblokk hőteljesítmény | B9: 350 | C9: kW | D9: th
A10: kiadható motorblokk hőteljesítmény | B10: =IF(B2>17,B9,B9-(-0.1714*B2^2-5.0644*B2+137.77)) -> 280.014 | C10: kW | D10: y = -0,1714x2 - 5,0644x + 137,77
A12: Ventilátor darabszám | B12: 1 | C12: db | D12: 1 vagy 2
A13: Ventilátor légszállítás | B13: =18000*B12 -> 18000 | C13: kg/h
A14: Belépő szárítólevegő hőmérséklet | B14: =B10/(B13/3600)/1.0066+B2 -> 65.63560501 | C14: °C
A15: Kilépő szárítólevegő hőmérséklet | B15: =(0.382*B14+0.9)+10 -> 35.97280111 | C15: °C | D15: y = 0,382x + 0,9
A17: telítési gőznyomás | B17: =EXP((-5.1663007-0.0090035053*B14+0.00004386158*B14^2+0.0000056980777*B14^3)/(1+0.016715628*B14+0.0001670544*B14^2+0.00000046505309*B14^3))*100000 -> 26128.12528 | C17: Pa | D17: Tbe
A18: telítési gőznyomás | B18: =EXP((-5.1663007-0.0090035053*B15+0.00004386158*B15^2+0.0000056980777*B15^3)/(1+0.016715628*B15+0.0001670544*B15^2+0.00000046505309*B15^3))*100000 -> 6019.793977 | C18: Pa | D18: Tki
A19: Belépő szárítólevegő rel. Nedvesség | B19: =(B4*B6*29/18)/(B17*(1+B6*29/18)) -> 0.0319286933 | D19: Tbe
A20: belépő levegő entalpia | B20: =B14+B6*2500 -> 78.51744103 | C20: kJ/kg
A21: száraz levegő fajhő | B21: =(1.0061619+ 0.0021280363*B15-0.0000029307819*B15^2)/(1+0.0021044952*B15-0.0000030985582*B15^2) -> 1.00674245 | C21: kJ/kg/K | D21: Tki
A22: vízgőz fajhő | B22: =( 1.8369125+0.00022327897*B15+0.000000083684466*B15^2) -> 1.845052761 | C22: kJ/kg/K | D22: Tki
A23: kilépő levegő abszolút nedvesség | B23: =(B14+B6*2500-B21*B15)/(2500+B22*B15) -> 0.01648322995 | C23: kg/kg
A24: kilépő levegő entalpia | B24: =B21*B15+B23*(2500+B22*B15) -> 78.51744103 | C24: kJ/kg
A26: szárított anyag kiindulási nedvesség | B26: 0.7 | C26: %
A27: szárított anyag végső nedvesség | B27: 0.2 | C27: %
A28: szárítható szárazanyag | B28: =B13*1.2*1.006*(B23-B6)/((B26/(1-B26))-(B27/(1-B27))) -> 118.1794252 | C28: kg/h
A29: elpárologtatott víz | B29: =((B26/(1-B26))-(B27/(1-B27)))*B28 -> 246.2071358 | C29: kg/h
A30: szárítható nedves anyag | B30: =B28/(1-B26) -> 393.9314173 | C30: kg/h
A31: pellet alapanyag | B31: =B30-B29 -> 147.7242815 | C31: kg/h
A32: fajlagos szárító teljesítmény | B32: =B29/B10 -> 0.8792672359 | C32: kg/kW
A35: Fliegl szárító hőteljesítmény külső napi átlaghőmérséklet függvényében:
A36: 350-(-0,1714*t^2-5,0644*t+137,77) [kWth]
A37: Fliegl szárító fajlagos szárító teljesítmény külső napi átlaghőmérséklet függvényében:
A38: -0,0006*t^2 + 0,0341*t + 0,5976 [kg víz/kWth]

Sheet levegő
A1: (Short-cut) Szárító technológia méretezés - levegőre | F1: P (kW) | G1: T_ki (°C) | H1: C (kg/h) | I1: e (l/kWh)
A2: megnevezés | B2: jelölés | C2: mértékegység | D2: érték | F2: 300 | G2: 35 | H2: 430 | I2: 1.01
A3: veszteséghő teljesítmény | B3: Pth | C3: kW | D3: 300 | F3: 650 | G3: 35 | H3: 932
A4: nedves anyag tömegáram | B4: mna | C4: kg/h | D4: 331.1266465 | F4: 300 | G4: 40 | H4: 386 | I4: 0.91
A5: nedves anyag tömegáram | B5: mna | C5: kg/s | D5: =D4/3600 -> 0.09197962403 | F5: 650
A6: anyag kiindulási relatív nedvességtartalom | B6: x0 | C6: 1 | D6: 0.7 | F6: 650 | G6: 40 | H6: 836
A7: anyag végső relatív nedvességtartalom | B7: xv | C7: 1 | D7: 0.1 | F7: 300 | G7: 45 | H7: 342 | I7: 0.8
A8: szárítólevegő térfogatáram | B8: Vg | C8: m3/s | D8: =D21/3600 -> 4.975102045
A9: tengerszint feletti magasság | B9: H | C9: m | D9: 0 | F9: 650 | G9: 45 | H9: 740
A10: környezeti levegő relatív nedvesség | B10: Φ0 | C10: 1 | D10: 0.6
A11: szárítólevegő belépő hőmérséklet | B11: Tg,be | C11: °C | D11: 80
A12: szárítólevegő kilépő hőmérséklet | B12: Tg,ki | C12: °C | D12: 45
A13: nedves anyag fajhő | B13: cna | C13: J/kg/K | D13: 3909
A14: szárítólevegő fajhő (normál áll.) | B14: cg | C14: J/kg/K | D14: 1006
A15: szárítólevegő sűrűség (normál áll.) | B15: ρg | C15: kg/m3 | D15: 1.2916
A16: környezeti levegő hőmérséklet | B16: Tg,0 | C16: °C | D16: 20
A17: szárítólevegő belépő abs. nedvesség | B17: Yg,be | C17: kg/kg | D17: =D32 -> 0.008671252036
A18: szárítólevegő kilépő rel. Nedvesség, max | B18: Φg,ki | C18: 1 | D18: 0.8
A19: Eredmények | G19: X1 | H19: X2
A20: szárítólevegő térfogatáram | B20: Vg | C20: Nm3/h | D20: =D3/(D15*D14/1000*(D11-D16))*3600 -> 13853.08465 | E20: =D23*(G20-H20) -> 220.7510977 | G20: =(D6/(1-D6)) -> 2.333333333 | H20: =(D7/(1-D7)) -> 0.1111111111
A21: szárítólevegő térfogatáram (belépő) | B21: Vg | C21: m3/h | D21: =D20*(273.15+D11)/273.15 -> 17910.36736 | E21: =E20/(D38-D17) -> 16787.84896
A22: szárítólevegő tömegatáram | B22: ms | C22: kg/s | D22: =D20/3600*D15 -> 4.970178926
A23: belépő szárazanyag tömegáram | B23: ms | C23: kg/h | D23: =D4-(D4*D6) -> 99.33799395
A24: belépő szárazanyag tömegáram | B24: ms | C24: kg/s | D24: =D5-(D5*D6) -> 0.02759388721
A25: belépő levegő entalpia | B25: h0 | C25: kJ/kg | D25: =D16+D17*2500 -> 41.67813009
A26: szárítólevegő kilépő abs. Nedvesség, min. | B26: Yg,ki | C26: kg/kg | D26: =D23*((D6/(1-D6))-(D7/(1-D7)))/D20/D15+D17 -> 0.02100878561
A27: abszolút környezeti nyomás kitevő | B27: z | C27: 1 | D27: =(29*9.81*D9/8314.4/(273+D16))*(1+((-5.1663007-0.0090035053*D16+0.00004386158*D16^2+0.0000056980777*D16^3)/(1+0.016715628*D16+0.0001670544*D16^2+0.00000046505309*D16^3))/(1+((-5.1663007-0.0090035053*D16+0.00004386158*D16^2+0.0000056980777*D16^3)/(1+0.016715628*D16+0.0001670544*D16^2+0.00000046505309*D16^3))*29/18)) -> 0
A28: abszolút környezeti nyomás | B28: P0 | C28: Pa | D28: =101325*EXP(-D27) -> 101325
A29: telítési gőznyomás belépő T-n | B29: pv,tel,T0 | C29: N/m2 | D29: =EXP((-5.1663007-0.0090035053*D16+0.00004386158*D16^2+0.0000056980777*D16^3)/(1+0.016715628*D16+0.0001670544*D16^2+0.00000046505309*D16^3))*100000 -> 2326.737601
A30: telítési gőznyomás belépő T-n | B30: pv,tel,Tbe | C30: N/m2 | D30: =EXP((-5.1663007-0.0090035053*D11+0.00004386158*D11^2+0.0000056980777*D11^3)/(1+0.016715628*D11+0.0001670544*D11^2+0.00000046505309*D11^3))*100000 -> 47822.57327
A31: telítési gőznyomás kilépő T-n | B31: pv,tel,Tki | C31: N/m2 | D31: =EXP((-5.1663007-0.0090035053*D12+0.00004386158*D12^2+0.0000056980777*D12^3)/(1+0.016715628*D12+0.0001670544*D12^2+0.00000046505309*D12^3))*100000 -> 9757.794604
A32: környezeti levegő abs. nedvesség | B32: Yg,0 | C32: kg/kg | D32: =(18/29)*D10*D29/(D28-D10*D29) -> 0.008671252036
A33: szárítólevegő belépő rel. nedvesség | B33: Φg,be | C33: 1 | D33: =(D28*D17*29/18)/(D30*(1+D17*29/18)) -> 0.0291921255
A34: szárítólevegő belépő entalpia || | B34: hg,be | C34: kJ/kg | D34: =D11+D17*2500 -> 101.6781301
A35: száraz levegő fajhő | B35: cpl | C35: kJ/kg/K | D35: =(1.0061619+ 0.0021280363*D12-0.0000029307819*D12^2)/(1+0.0021044952*D12-0.0000030985582*D12^2) -> 1.006946714
A36: vízgőz fajhő | B36: cpd | C36: kJ/kg/K | D36: =( 1.8369125+0.00022327897*D12+0.000000083684466*D12^2) -> 1.847129515
A37: nedves levegő entalpia || | B37: h | C37: kJ/kg | D37: =D35*D12+D38*(2500+D36*D12) -> 101.6781301
A38: szárítólevegő kilépő abs. nedvesség | B38: Yg,ki | C38: kg/kg | D38: =(D11+D17*2500-D35*D12)/(2500+D36*D12) -> 0.02182070901
A39: szárítólevegő kilépő rel. nedvesség | B39: Φg,ki | C39: 1 | D39: =(D28*D38*29/18)/(D31*(1+D38*29/18)) -> 0.3526579353
A40: max. szárítható szárazanyag tömegáram | B40: ms | C40: kg/h | D40: =D21*(273)/(273+D11)*1.2/3600*1.01*(D38-D17)/((D6/(1-D6))-(D7/(1-D7)))*3600 -> 99.33799441 | E40: =D40/(1-D7) -> 110.3755493
A41: igényelt hőteljesítmény | B41: Qi | C41: kW | D41: =D22*D14*(D11-D16)/1000 -> 300
A42: fajlagos szárító teljesítmény | B42: p_sz | C42: liter víz/kWh | D42: =(D6/(1-D6)-D7/(1-D7))*D40/(D41) -> 0.7358369956
A43: szárítólevegő nyomásveszteség | B43: ∆P | C43: Pa | D43: 1500
A44: ventilátor hatásfok | B44: ηv | C44: 1 | D44: 0.95
A45: becsült ventilátor teljesítmény | B45: Pv | C45: kW | D45: =D21*(273)/(273+D12)*1.205/3600*9.81*D43/10000/D44 -> 7.971888727
A46: fajlagos villamosenergia költség | B46: cel | C46: ft/kWh | D46: 20
A47: ventilátor üzemi költség | B47: cvü | C47: ft/év | D47: =D45*20*365*D46 -> 1163895.754
A48: keringető szivattyú teljesítmény | B48: Psz | C48: kW | D48: 7
A49: szivattyú üzemi költség | B49: cszü | C49: ft/év | D49: =D46*20*365*D48 -> 1022000
A50: összes üzemi költség | B50: Cü | C50: ft/év | D50: =(D47+D49)*1.2 -> 2623074.905
A51: brikett fajlagos bevétel | B51: Ib | C51: ft/kg | D51: 30
A52: éves bevétel | B52: I | C52: ft/év | D52: =D40*20*360*D51 -> 21457006.79
A54: abszolút hiba az anyagban | B54: hiba | C54: 1 | D54: =ABS(D40-D23) -> 4.572929413e-07

Sheet füstgáz
A1: (Short-cut) Szárító technológia méretezés - füstgázra
A2: megnevezés | B2: jelölés | C2: mértékegység | D2: érték
A3: veszteséghő teljesítmény | B3: Pth | C3: kW | D3: 320 | H3: Füszgáz áramlási sebességek | J3: Füstgáz térfogatáram számítás
A4: nedves anyag tömegáram | B4: mna | C4: kg/h | D4: 703.6757132 | H4: D (m) | I4: vg (m/s) | J4: CH4 | K4: 16 | L4: g/mol | M4: CH4 + 2 O2 = CO2 + 2 H2O | N4: V_jobb oldal | O4: =K7/K11+(0.5697*100000/(461.495*(160+273.15))*K8) -> 32.81244362 | P4: m3
A5: nedves anyag tömegáram | B5: mna | C5: kg/s | D5: =D4/3600 -> 0.1954654759 | H5: 1 | I5: =$D$18/3600/H5^2/PI()*4 -> 2.077346071
A6: anyag kiindulási relatív nedvességtartalom | B6: x0 | C6: 1 | D6: 0.7 | H6: 1 | I6: =$D$18/3600/H6^2/PI()*4 -> 2.077346071 | J6: 2 O2 | K6: 64 | L6: g/mol | N6: levegő N2 | O6: =K6/K10/0.21*0.78 -> 168.591692 | P6: m3
A7: végső relatív nedvességtartalom | B7: xv | C7: 1 | D7: 0.1 | H7: 1.2 | I7: =$D$18/3600/H7^2/PI()*4 -> 1.442601438 | J7: CO2 | K7: 44 | L7: g/mol | N7: bg CO2 | O7: =K4/K9/0.51*0.49 -> 21.70344348 | P7: m3
A8: szárítógáz száraz térfogatáram | B8: Vg | C8: Nm3/h | D8: =(O10*(O9-(0.5697*100000/(461.495*(160+273.15))*K8))/O8)+O11-54 -> 2040.783908 | H8: 1.5 | I8: 0.9232649204 | J8: 2 H2O | K8: 36 | L8: g/mol | N8: GÁZ_BE | O8: =K12+O7+O6 -> 258.2745047 | P8: m3
A9: szárítólevegő térfogatáram | B9: Vg | C9: Nm3/s | D9: =D8/3600 -> 0.5668844189 | H9: 1.8 | I9: 0.6411561947 | J9: rho_CH4 | K9: 0.7083 | L9: kg/m3 | N9: GÁZ_KI | O9: =O4+O7+O6 -> 223.1075791 | P9: m3
A10: tengerszint feletti magasság | B10: H | C10: m | D10: 400 | H10: 2 | I10: 0.5193365177 | J10: rho_O2 | K10: 1.41 | L10: kg/m3 | N10: BG_BE | O10: =637/(0.51*32700/3600*0.38)*24/20 -> 434.2318289 | P10: Nm3
A11: szárítólevegő belépő hőmérséklet | B11: Tg,be | C11: °C | D11: 513 | H11: 2.3 | I11: 0.3926930191 | J11: rho_CO2 | K11: 1.951 | L11: kg/m3 | N11: légfelesleg | O11: =O10*4 -> 1736.927316 | P11: Nm3
A12: szárítólevegő kilépő hőmérséklet | B12: Tg,ki | C12: °C | D12: =D11-D3/D19/D36 -> 132.27469 | H12: 2.5 | I12: 0.3323753713 | J12: V_bal oldal | K12: =K4/K9+K6/K10 -> 67.97936924 | L12: m3 | N12: FG_KI | O12: =(O10*O9/O8)+O11 -> 2112.033686 | P12: Nm3
A13: nedves anyag fajhő | B13: cna | C13: J/kg/K | D13: 3909
A14: szárítógáz sűrűség | B14: ρg | C14: kg/Nm3 | D14: 1.328
A15: környezeti levegő hőmérséklet | B15: Tg,0 | C15: °C | D15: 20
A16: szárítógáz belépő abs. nedvesség | B16: Yg,be | C16: kg/kg | D16: 0.048
A17: Eredmények
A18: szárítógáz térfogatáram | B18: Vg | C18: m3/h | D18: =D8*(273.15+D11)/273.15 -> 5873.55764
A19: szárítógáz tömegatáram | B19: ms | C19: kg/s | D19: =D8/3600*D14 -> 0.7528225083
A20: belépő szárazanyag tömegáram | B20: ms | C20: kg/h | D20: =D4-(D4*D6) -> 211.102714
A21: belépő szárazanyag tömegáram | B21: ms | C21: kg/s | D21: =D5-(D5*D6) -> 0.05863964277
A22: belépő levegő entalpia | B22: h0 | C22: kJ/kg | D22: =D36*D11+D16*(2500+D38*D11) -> 741.3421487
A23: szárítógáz kilépő abs. Nedvesség, min. | B23: Yg,ki | C23: kg/kg | D23: =D20*((D6/(1-D6))-(D7/(1-D7)))/D8/D14+D16 -> 0.2210956711
A24: abszolút környezeti nyomás kitevő | B24: z | C24: 1 | D24: =(29*9.81*D10/8314.4/(273+D15))*(1+((-5.1663007-0.0090035053*D15+0.00004386158*D15^2+0.0000056980777*D15^3)/(1+0.016715628*D15+0.0001670544*D15^2+0.00000046505309*D15^3))/(1+((-5.1663007-0.0090035053*D15+0.00004386158*D15^2+0.0000056980777*D15^3)/(1+0.016715628*D15+0.0001670544*D15^2+0.00000046505309*D15^3))*29/18)) -> 0.08143686052
A25: abszolút környezeti nyomás | B25: P0 | C25: Pa | D25: =101325*EXP(-D24) -> 93400.4639
A26: telítési gőznyomás környezeti T-n | B26: pv,tel,T0 | C26: N/m2 | D26: =EXP((-5.1663007-0.0090035053*D15+0.00004386158*D15^2+0.0000056980777*D15^3)/(1+0.016715628*D15+0.0001670544*D15^2+0.00000046505309*D15^3))*100000 -> 2326.737601
A27: telítési gőznyomás belépő T-n | B27: pv,tel,Tbe | C27: N/m2 | D27: =EXP((-5.1663007-0.0090035053*D11+0.00004386158*D11^2+0.0000056980777*D11^3)/(1+0.016715628*D11+0.0001670544*D11^2+0.00000046505309*D11^3))*100000 -> 75622144.34
A28: telítési gőznyomás kilépő T-n | B28: pv,tel,Tki | C28: N/m2 | D28: =EXP((-5.1663007-0.0090035053*D12+0.00004386158*D12^2+0.0000056980777*D12^3)/(1+0.016715628*D12+0.0001670544*D12^2+0.00000046505309*D12^3))*100000 -> 286830.3297
A29: szárítógáz belépő rel. nedvesség | B29: Φg,be | C29: 1 | D29: =(D25*D16*29/18)/(D27*(1+D16*29/18)) -> 8.865774442e-05 | E29: h-szamitas
A30: füstgáz fajhő paraméter | B30: p1Tbe | C30: 1 | D30: =0.8554535+0.0002036005*D11+0.0000004583082*D11^2-0.000000000279808*D11^3+5.634413E-14*D11^4 -> 1.046639671 | E30: =0.8554535+0.0002036005/2*D11+0.0000004583082/3*D11^2-0.000000000279808/4*D11^3+5.634413E-14/5*D11^4 -> 0.9392177354
A31: füstgáz fajhő paraméter | B31: p1Tki | C31: 1 | D31: =0.8554535+0.0002036005*D12+0.0000004583082*D12^2-0.000000000279808*D12^3+5.634413E-14*D12^4 -> 0.8897731986
A32: füstgáz fajhő paraméter | B32: p2Tbe | C32: 1 | D32: =-0.1002311+0.0007661864*D11-0.0000009259622*D11^2+0.0000000005293496*D11^3-0.0000000000001093573*D11^4 -> 0.1130293293 | E32: =-0.1002311+0.0007661864/2*D11-0.0000009259622/3*D11^2+0.0000000005293496/4*D11^3-0.0000000000001093573/5*D11^4 -> 0.03141906057
A33: füstgáz fajhő paraméter | B33: p2Tki | C33: 1 | D33: =-0.1002311+0.0007661864*D12-0.0000009259622*D12^2+0.0000000005293496*D12^3-0.0000000000001093573*D12^4 -> -0.01389358973
A34: füstgáz fajhő paraméter | B34: c_pLTbe | C34: kJ/kg/K | D34: =1.004173+0.0000191921*D11+0.0000005883483*D11^2-0.0000000007011184*D11^3+0.0000000000003309525*D11^4-5.673876E-17*D11^5 -> 1.095103796 | E34: =1.004173*D11+0.0000191921/2*D11^2+0.0000005883483/3*D11^3-0.0000000007011184/4*D11^4+0.0000000000003309525/5*D11^5-5.673876E-17/6*D11^6 -> 534.1827662
A35: füstgáz fajhő paraméter | B35: c_pLTki | C35: kJ/kg/K | D35: =1.004173+0.0000191921*D12+0.0000005883483*D12^2-0.0000000007011184*D12^3+0.0000000000003309525*D12^4-5.673876E-17*D12^5 -> 1.015482099
A36: száraz füstgáz fajhő | B36: c_pRGTbe | C36: kJ/kg/K | D36: =D34+D30*0.000000000000000496+D32*0.189 -> 1.116466339 | E36: =E34+(E30*0.0496+E32*0.189)*D11 -> 561.1272715
A37: száraz füstgáz fajhő | B37: c_pRGTki | C37: kJ/kg/K | D37: =D35+D31*4.96E-24+D33*0.189 -> 1.012856211
A38: vízgőz fajhő | B38: cpdTbe | C38: kJ/kg/K | D38: =( 1.8369125+0.00022327897*D11+0.000000083684466*D11^2) -> 1.973477769
A39: vízgőz fajhő | B39: cpdTki | C39: kJ/kg/K | D39: =( 1.8369125+0.00022327897*D12+0.000000083684466*D12^2) -> 1.86791085
A40: nedves szárítógáz entalpia | B40: h | C40: kJ/kg | D40: =D37*D12+D41*(2500+D39*D12) -> 741.3421487
A41: szárítógáz kilépő abs. nedvesség | B41: Yg,ki | C41: kg/kg | D41: =(D22-D37*D12)/(2500+D39*D12) -> 0.2210956718
A42: szárítógáz kilépő rel. nedvesség | B42: Φg,ki | C42: 1 | D42: =D25*D41*29/18/(D28*(1+D41*29/18)) -> 0.08552692358
A43: szárítható szárazanyag tömegáram | B43: ms | C43: kg/h | D43: =D8*D14*(D41-D16)/((D6/(1-D6))-(D7/(1-D7))) -> 211.1027148
A44: igényelt hőteljesítmény | B44: Q | C44: kW | D44: =D19*D36*(D11-D12) -> 320
A45: fajlagos szárító teljesítmény | B45: p_sz | C45: liter víz/kWh | D45: =(D6/(1-D6)-D7/(1-D7))*D43/D44 -> 1.465991075
A46: szárítólevegő nyomásveszteség | B46: ∆P | C46: Pa | D46: 2000
A47: ventilátor hatásfok | B47: ηv | C47: 1 | D47: 0.85
A48: becsült ventilátor teljesítmény | B48: Pv | C48: kW | D48: =D18*D14/3600*0.461*9.81*D46/10000/D47 -> 2.305567343
A49: fajlagos villamosenergia költség | B49: cel | C49: ft/kWh | D49: 20
A50: ventilátor üzemi költség | B50: cvü | C50: ft/év | D50: =D48*20*365*D49 -> 336612.8321
A51: keringető szivattyú teljesítmény | B51: Psz | C51: kW | D51: 7.5
A52: szivattyú üzemi költség | B52: cszü | C52: ft/év | D52: =D49*20*365*D51 -> 1095000
A53: összes üzemi költség | B53: Cü | C53: ft/év | D53: =(D50+D52)*1.2 -> 1717935.399
A54: brikett fajlagos bevétel | B54: Ib | C54: ft/kg | D54: 30
A55: éves bevétel | B55: I | C55: ft/év | D55: =D43*20*360*D54 -> 45598186.4
A60: hiba | B60: hiba | C60: 1 | D60: =ABS(D43-D20) -> 8.7486967e-07

Sheet MatLab_eredmények
A4: D (m) | B4: L (m) | C4: G (Nm3/h) | D4: Tg_be (°C) | E4: Ts_be (°C) | F4: Ts_ki (°C) | G4: Tg_1 (°C) | H4: Tg_2 | I4: Tg_3 | J4: Tg_4 | K4: Tg_5 | L4: Tw_1 (°C) | M4: Tw_2 | N4: Tw_3 | O4: Tw_4 | P4: Tw_5 | Q4: H_1 (kJ/kg) | R4: H_2 | S4: H_3 | T4: H_4 | U4: H_5 | V4: W_1 (kg/kg) | W4: W_2 | X4: W_3 | Y4: W_4 | Z4: W_5 | AA4: fi_1 (%) | AB4: fi_2 | AC4: fi_3 | AD4: fi_4 | AE4: fi_5 | AF4: m_sza (kg/s) | AG4: m_sza (kg/h) | AH4: m_na (kg/h) | AI4: e (kgH2O/kWh) | AJ4: L_t (m) | AK4: N_t (1) | AL4: Va (W/m3/°C)
A5: 1 | B5: 10 | C5: 1760 | D5: 513 | E5: 10 | F5: 80 | G5: 81.31 | H5: 513 | I5: 5 | J5: 491.88 | K5: 83.42 | L5: 63.14 | M5: 62.17 | N5: 4.79 | O5: 62.1 | P5: 61.91 | Q5: 539.9 | R5: 534.18 | S5: 18.18 | T5: 532.27 | U5: 542.62 | V5: 0.1727 | W5: 0.0052 | X5: 0.0052 | Y5: 0.0052 | Z5: 0.1727 | AA5: 43.97 | AB5: 0.001 | AC5: 97 | AD5: 0.0011 | AE5: 40.52 | AF5: 0.0442 | AG5: =AF5*3600 -> 159.12 | AH5: =AG5*2.333/0.7 -> 530.3242286 | AI5: 1.175 | AJ5: 3.234 | AK5: 3.093 | AL5: 233.5
C6: 1750 | D6: 513 | E6: 10 | F6: 80 | H6: 513 | I6: 5 | W6: 0.0052 | X6: 0.0052 | Y6: 0.0052 | AC6: 95 | AF6: 0.0522 | AG6: =AF6*3600 -> 187.92 | AH6: =AG6*2.333/0.7 -> 626.3105143
AG7: 0 | AH7: 0
AG8: 0 | AH8: 0
AG9: 0 | AH9: 0
AG10: 0 | AH10: 0
AG11: 0 | AH11: 0
AG12: 0 | AH12: 0
AG13: 0 | AH13: 0
AH14: 0
AH15: 0
AH16: 0
C20: cikk validáció levegőre
C21: xi | D21: 0.333 | E21: kg/kg
C22: xo | D22: 0.005 | E22: kg/kg
C23: cps | D23: 1 | E23: kJ/kg/°C
C24: Tsi | D24: 27 | E24: °C
C25: Tso | D25: 65 | E25: °C
C26: Tg2 | D26: 165 | E26: °C
C27: P0 | D27: 101234 | E27: Pa
C28: S | D28: 1 | E28: paralel flow
C29: D (m) | D29: Z (m) | E29: G (kg/s) | F29: G (Nm3/h) | G29: L_exp (kg/s) | H29: L_cal (kg/s) | I29: L_cal* (kg/s) | J29: Tg1_exp (°C) | K29: Tg1_cal (°C) | L29: Tg1_cal* (°C)
C30: 1.219 | D30: 7.62 | E30: 0.957 | F30: =E30*3600/1.29 -> 2670.697674 | G30: 0.113 | H30: 0.108 | I30: 0.1149 | J30: 71 | K30: 67.7 | L30: 72.6
C31: 1.372 | D31: 7.621 | E31: 1.276 | F31: =E31*3600/1.29 -> 3560.930233 | G31: 0.144 | H31: 0.136 | I31: 0.1434 | J31: 71 | K31: 72.6 | L31: 77.8
C32: 1.524 | D32: 9.144 | E32: 1.595 | F32: 4451.162791 | G32: 0.176 | H32: 0.174 | I32: 0.1844 | J32: 71 | K32: 70.4 | L32: 75.4
C33: 1.839 | D33: 10.698 | E33: 2.233 | F33: 6231.627907 | G33: 0.263 | H33: 0.244 | I33: 0.258 | J33: 71 | K33: 70.3 | L33: 75.3
C34: 2.134 | D34: 12.192 | E34: 2.871 | F34: 8012.093023 | G34: 0.351 | H34: 0.316 | I34: 0.3352 | J34: 71 | K34: 69.7 | L34: 74.57
C35: 2.438 | D35: 13.716 | E35: 3.829 | F35: 10685.5814 | G35: 0.451 | H35: 0.416 | I35: 0.4408 | J35: 71 | K35: 70.7 | L35: 75.75
C36: 3.048 | D36: 16.767 | E36: 6.062 | F36: 16917.2093 | G36: 0.715 | H36: 0.65 | I36: 0.688 | J36: 71 | K36: 71.9 | L36: 76.96
C39: L | D39: 12 | E39: 12 | F39: 12
C40: s | D40: 0.025 | E40: 0.025 | F40: 0.025
C41: n | D41: 2 | E41: 3 | F41: 4
C42: D | D42: 1.2 | E42: 1.2 | F42: 1.2
C43: Dp | D43: 2000 | E43: 2000 | F43: 2000
C44: G | D44: 15.5833 | E44: 0.01694 | F44: 15.5833
C45: S | D45: 8.3672 | E45: 0.008957 | F45: 8.3672
C46: Tau | D46: =(1/60)*(13.8*D39/(D40*D41^0.9*D42)-(614.2/D43^0.5)*D39*D44/D45) -> 44.18589078 | E46: =(1/60)*(13.8*E39/(E40*E41^0.9*E42)-(614.2/E43^0.5)*E39*E44/E45) -> 29.03289588 | F46: =(1/60)*(13.8*F39/(F40*F41^0.9*F42)-(614.2/F43^0.5)*F39*F44/F45) -> 21.30437367
C48: Ker | D48: =D42*PI() -> 3.769911184

Sheet elregedasiSebesseg
A1: V (m3/h) | B1: v (m/s) | C1: m_ö (g) | D1: m_öa (g) | E1: m_m (g) | F1: m_ma (g) | G1: m_el (g) | H1: m_el (%) | I1: hiba (g) | J1: hiba (%) | K1: illesztés m_el (%) | M1: m_t | N1: 147.7 | O1: g
A2: 5 | B2: =A2/3600/0.0025 -> 0.5555555556 | C2: 225.87 | D2: =C2-$N$1 -> 78.17 | E2: 225.95 | F2: =E2-$N$1 -> 78.25 | G2: 0.07 | H2: =G2/D2 -> 0.0008954842011 | I2: =D2-F2-G2 -> -0.15 | J2: =I2/D2 -> -0.001918894717 | K2: =0.0159*B2^2.8118 -> 0.003045242586 | M2: m_veszteseg | N2: 0.76 | O2: (kamraban maradt)
A3: 6.5 | B3: =A3/3600/0.0025 -> 0.7222222222 | C3: 214.25 | D3: 66.55 | E3: 225.95 | F3: 78.25 | G3: 0.38 | H3: =G3/D3 -> 0.005709992487 | I3: =D3-F3-G3 -> -12.08 | J3: =I3/D3 -> -0.1815176559 | K3: =0.0159*B3^2.8118 -> 0.006368069763
A4: 8.2 | B4: 0.9111111111 | C4: 216.41 | D4: 68.71 | E4: 214.45 | F4: 66.75 | G4: 2.09 | H4: 0.03041769757 | I4: -0.13 | J4: -0.001892009897 | K4: 0.01223826425 | M4: m_t | N4: 147.75 | O4: g
A5: 10 | B5: 1.111111111 | C5: 216.51 | D5: 68.81 | E5: 215.31 | F5: 67.61 | G5: 1.19 | H5: 0.01729399797 | I5: 0.01 | J5: 0.000145327714 | K5: 0.02138247812 | M5: m_veszteseg | N5: 0.76 | O5: (kamraban maradt)
A6: 12 | B6: 1.333333333 | C6: 215.09 | D6: 67.39 | E6: 213.03 | F6: 65.33 | G6: 2.19 | H6: 0.03249740318 | I6: -0.13 | J6: -0.001929069595 | K6: 0.03570260162
A7: 13.5 | B7: 1.5 | C7: 213.15 | D7: 65.45 | E7: 209.4 | F7: 61.7 | G7: 3.78 | H7: 0.0577540107 | I7: -0.03 | J7: -0.0004583651642 | K7: 0.04971993206
A8: 16 | B8: 1.777777778 | C8: 211.96 | D8: 64.26 | E8: 208.49 | F8: 60.79 | G8: 3.46 | H8: 0.05384375973 | I8: 0.01 | J8: 0.0001556178027 | K8: 0.08016828693
A9: 17.5 | B9: 1.944444444 | C9: 208.53 | D9: 60.83 | E9: 199.58 | F9: 51.88 | G9: 9.07 | H9: 0.1491040605 | I9: -0.12 | J9: -0.001972710833 | K9: 0.1031412574
A10: 22 | B10: 2.444444444 | C10: 208.53 | D10: 60.83 | E10: 194.63 | F10: 46.93 | G10: 12.78 | H10: 0.2100937038 | I10: 1.12 | J10: 0.01841196778 | K10: 0.1962827483
A12: 5 | B12: =A12/3600/0.0025 -> 0.5555555556 | C12: 207.34 | D12: =C12-$N$1 -> 59.64 | E12: 206.78 | F12: =E12-$N$1 -> 59.08 | G12: 0.15 | H12: 0.002515090543 | I12: =D12-F12-G12 -> 0.41 | J12: =I12/D12 -> 0.006874580818 | K12: 0.003045242586
A13: 6.5 | B13: =A13/3600/0.0025 -> 0.7222222222 | C13: 206.85 | D13: 59.15 | E13: 206.02 | F13: 58.32 | G13: 0.29 | H13: 0.004902789518 | I13: 0.54 | J13: 0.009129332206 | K13: 0.006368069763
A14: 8.2 | B14: 0.9111111111 | C14: 206.28 | D14: 58.58 | E14: 204.74 | F14: 57.04 | G14: 0.78 | H14: 0.01331512462 | I14: 0.76 | J14: 0.01297371116 | K14: 0.01223826425
A15: 10 | B15: 1.111111111 | C15: 205.43 | D15: 57.73 | E15: 202.96 | F15: 55.26 | G15: 1.61 | H15: 0.02788844622 | I15: 0.86 | J15: 0.014896934 | K15: 0.02138247812
A16: 12 | B16: 1.333333333 | C16: 204.45 | D16: 56.75 | E16: 200.57 | F16: 52.87 | G16: 2.76 | H16: 0.04863436123 | I16: 1.12 | J16: 0.01973568282 | K16: 0.03570260162
A17: 13.5 | B17: 1.5 | C17: 203.33 | D17: 55.63 | E17: 198.34 | F17: 50.64 | G17: 3.89 | H17: 0.06992629876 | I17: 1.1 | J17: 0.01977350351 | K17: 0.04971993206
A18: 16 | B18: 1.777777778 | C18: 202.19 | D18: 54.49 | E18: 195.93 | F18: 48.23 | G18: 5.28 | H18: 0.09689851349 | I18: 0.98 | J18: 0.01798495137 | K18: 0.08016828693
A19: 17.5 | B19: 1.944444444 | C19: 201.12 | D19: 53.42 | E19: 196.9 | F19: 49.2 | G19: 3.51 | H19: 0.06570572819 | I19: 0.71 | J19: 0.01329090228 | K19: 0.1031412574
A20: 22 | B20: 2.444444444 | C20: 200.27 | D20: 52.57 | E20: 191.86 | F20: 44.16 | G20: 7.77 | H20: 0.1478029294 | I20: 0.64 | J20: 0.01217424387 | K20: 0.1962827483
A22: 5 | B22: 0.5555555556 | C22: 178.01 | D22: =C22-$N$4 -> 30.26 | E22: 177.46 | F22: =E22-$N$4 -> 29.71 | G22: 0.31 | H22: 0.01024454726 | I22: =D22-F22-G22 -> 0.24 | J22: =I22/D22 -> 0.007931262393 | K22: =0.0554*B22^2.2934 -> 0.01439023219
A23: 6.8 | B23: 0.7555555556 | C23: 178.07 | D23: =C23-$N$4 -> 30.32 | E23: 177.45 | F23: =E23-$N$4 -> 29.7 | G23: 0.62 | H23: 0.02044854881 | I23: 4.551914401e-15 | J23: 1.501291029e-16 | K23: =0.0554*B23^2.2934 -> 0.02912902404
A24: 8.5 | B24: 0.9444444444 | C24: 177.76 | D24: 30.01 | E24: 176.36 | F24: =E24-$N$4 -> 28.61 | G24: 1.42 | H24: 0.04731756081 | I24: -0.02 | J24: -0.0006664445185 | K24: 0.04859363171
A25: 10 | B25: 1.111111111 | C25: 177.83 | D25: 30.08 | E25: 175.2 | F25: 27.45 | G25: 2.47 | H25: 0.0821143617 | I25: 0.16 | J25: 0.005319148936 | K25: 0.07054236141
A26: 11.7 | B26: 1.3 | C26: 177.71 | D26: 29.96 | E26: 173.9 | F26: 26.15 | G26: 3.76 | H26: 0.1255006676 | I26: 0.05 | J26: 0.001668891856 | K26: 0.101117762
A27: 13.5 | B27: 1.5 | C27: 177.63 | D27: 29.88 | E27: 172.1 | F27: 24.35 | G27: 5.48 | H27: 0.1834002677 | I27: 0.05 | J27: 0.001673360107 | K27: 0.1403968805
A28: 15.3 | B28: 1.7 | C28: 177.58 | D28: 29.83 | E28: 169.26 | F28: 21.51 | G28: 8.24 | H28: 0.2762319812 | I28: 0.08 | J28: 0.002681863895 | K28: 0.1870773981
A29: 18 | B29: 2 | C29: 177.51 | D29: 29.76 | E29: 165.64 | F29: 17.89 | G29: 11.87 | H29: 0.3988575269 | I29: 0 | J29: 0 | K29: =0.0554*B29^2.2934 -> 0.2715763561
A30: 22.5 | B30: 2.5 | C30: 177.55 | D30: 29.8 | E30: 161.29 | F30: 13.54 | G30: 15.77 | H30: 0.5291946309 | I30: 0.49 | J30: 0.01644295302 | K30: 0.4530492133
A31: 27 | B31: 3 | C31: 177.42 | D31: 29.67 | E31: 161.5 | F31: 13.75 | G31: 16.13 | H31: 0.5436467813 | I31: -0.21 | J31: -0.007077856421 | K31: =0.0554*B31^2.2934 -> 0.6882395886
A32: 36 | B32: 4 | C32: 177.29 | D32: 29.54 | E32: 155.66 | F32: 7.91 | G32: 21.52 | H32: 0.7285037238 | I32: 0.11 | J32: 0.003723764387 | K32: -

Sheet dokumentaciohoz
A1: Anyag paramétrek | H1: Paraméter vizsgálat kiindulási adatok | L1: Belépő anyag nedvesség | M1: Kilépő Gáz hőmérséklet | N1: Szárítógáz térfogatáram | O1: Max. belépő na. | P1: Elpárologtatott víz | Q1: Max. kilépő szárított anyag | R1: Fajlagos szárítókapacitás | S1: verzió | T1: veszteséghő teljesítmény | U1: Belépő Gáz hőmérséklet | V1: Kilépő Gáz hőmérséklet | W1: Szárítógáz térfogatáram | X1: Max. belépő na. | Y1: Elpárologtatott víz | Z1: Max. kilépő szárított anyag | AA1: Fajlagos szárítókapacitás
A2: megnevezés | B2: jelölés | C2: mértékegység | H2: veszteséghő teljesítmény* | I2: kW | J2: 359 | L2: kgvíz/kgna | M2: °C | N2: Nm3/h | O2: kg/h | P2: kg/h | Q2: kg/h | R2: kgvíz/kW | S2: - | T2: kW | U2: °C | V2: °C | W2: Nm3/h | X2: kg/h | Y2: kg/h | Z2: kg/h | AA2: kgvíz/kW
A3: nedves anyag tömegáram | B3: mna | C3: kg/h | H3: belépő levegő hőmérséklet | I3: °C | J3: 80 | L3: 0.8 | M3: 50 | N3: 16876 | O3: 334 | P3: 255.4 | Q3: 78.588 | R3: 0.71 | S3: a | T3: 684 | U3: 80 | V3: 40 | W3: 32154 | X3: 924 | Y3: 652.2 | Z3: 271.76 | AA3: 0.95
A4: kiindulási relatív nedvességtartalom | B4: x0 | C4: 1 | H4: szárazanyag fajhő | I4: kJ/kg/K | J4: 1.9 | L4: 0.8 | M4: 45 | N4: 16876 | O4: 390 | P4: 298.2 | Q4: 91.756 | R4: 0.83 | S4: b/1 | T4: 359 | U4: 80 | V4: 40 | W4: 16876 | X4: 485 | Y4: 342.4 | Z4: 142.65 | AA4: 0.95
A5: végső relatív nedvességtartalom | B5: xv | C5: 1 | H5: kilépő anyag nedvesség | I5: kgvíz/kgna | J5: 0.15 | L5: 0.8 | M5: 40 | N5: 16876 | O5: 448 | P5: 342.6 | Q5: 105.41 | R5: 0.95 | S5: b/2 | T5: 325 | U5: 510 | V5: 103 | W5: 2041 | X5: 720 | Y5: 508.2 | Z5: 211.76 | AA5: 1.6
A6: nedves anyag fajhő | B6: cna | C6: J/kg/K | H6: környezeti levegő hőmérséklet | I6: °C | J6: 20 | L6: 0.75 | M6: 50 | N6: 16876 | O6: 361 | P6: 254.8 | Q6: 106.18 | R6: 0.71 | S6: b | T6: =T4+T5 -> 684 | U6: - | V6: - | W6: - | X6: =X4+X5 -> 1205 | Y6: =Y4+Y5 -> 850.6 | Z6: 354.41 | AA6: =(Y4+Y5)/T6 -> 1.243567251
A7: Szárítógáz paramétrek | H7: környezeti levegő páratartalom | I7: kgvíz/kgnl | J7: 0.7 | L7: 0.75 | M7: 45 | N7: 16876 | O7: 423 | P7: 298.6 | Q7: 124.41 | R7: 0.83
A8: megnevezés | B8: jelölés | C8: mértékegység | L8: 0.75 | M8: 40 | N8: 16876 | O8: 485 | P8: 342.4 | Q8: 142.65 | R8: 0.95
A9: szárítólevegő térfogatáram | B9: Vg | C9: Nm3/h | L9: 0.7 | M9: 50 | N9: 16876 | O9: 394 | P9: 254.9 | Q9: 139.06 | R9: 0.71
A10: szárítólevegő belépő hőmérséklet | B10: Tg,be | C10: °C | L10: 0.7 | M10: 45 | N10: 16876 | O10: 462 | P10: 298.9 | Q10: 163.06 | R10: 0.83
A11: szárítólevegő kilépő hőmérséklet | B11: Tg,ki | C11: °C | L11: 0.7 | M11: 40 | N11: 16876 | O11: 529 | P11: 342.3 | Q11: 186.71 | R11: 0.95
A12: szárítólevegő fajhő | B12: cg | C12: J/kg/K
A13: szárítólevegő sűrűség | B13: ρg | C13: kg/m3
A14: környezeti levegő hőmérséklet | B14: Tg,0 | C14: °C
A15: környezeti levegő relatív nedvesség | B15: Φ0 | C15: 1

Sheet Munka1
A1: T | B1: °C | C1: 80 | E1: T (°C) | F1: Y (kg/kg) | G1: u (m/s) | H1: kM | I1: Pvtel | J1: fi | K1: Xse0 (kg/kg) | L1: fi* | M1: hiba | O1: t (h) | P1: (X-X*)/(X0-X*) | R1: A | S1: 32435.7518 | T1: -28179.2855 | W1: Xse (kg/kg db) | X1: fi (kg/kg wb)
A2: Y | B2: kg/kg db | C2: 0.09 | E2: 450 | F2: 0.02 | G2: 1.3 | H2: =1.04*(E2/70)^1.55*(F2/0.01)^(-0.17)*G2^0.65 -> 19.61095998 | I2: =EXP((-5.1663007-0.0090035053*E2+0.00004386158*E2^2+0.0000056980777*E2^3)/(1+0.016715628*E2+0.0001670544*E2^2+0.00000046505309*E2^3))*100000 -> 45681727.44 | J2: =F2*I2/(I2*(18/29+F2)) -> 0.03121636168 | K2: 0.01938251726 | L2: =EXP(-EXP($T$1+$T$2*$T$3)*K2^(-$T$4)) -> 0.03121638837 | M2: =ABS(L2-J2) -> 2.669487826e-08 | O2: 0 | P2: =EXP(-$H$5*O2) -> 1 | R2: B | S2: -106.2845 | T2: 79.7821 | W2: 0 | X2: 0
A3: u | B3: m/s | C3: 1 | E3: 350 | F3: 0.1 | G3: 1 | H3: =1.04*(E3/70)^1.55*(F3/0.01)^(-0.17)*G3^0.65 -> 8.519946075 | I3: =EXP((-5.1663007-0.0090035053*E3+0.00004386158*E3^2+0.0000056980777*E3^3)/(1+0.016715628*E3+0.0001670544*E3^2+0.00000046505309*E3^3))*100000 -> 16529828.45 | J3: =F3*I3/(I3*(18/29+F3)) -> 0.1387559809 | K3: 0.02905646851 | L3: =EXP(-EXP($T$1+$T$2*$T$3)*K3^(-$T$4)) -> 0.1387559083 | M3: =ABS(L3-J3) -> 7.26077882e-08 | O3: 0.02 | P3: =EXP(-$H$5*O3) -> 0.9602681062 | R3: T | S3: 305.15 | T3: 353.15 | W3: 0.1 | X3: =EXP(-EXP($T$1+$T$2*$T$3)*W3^(-$T$4)) -> 0.7015080925
A4: SZUM_hiba | C4: =SUM(M2:M5) -> 6.716441229e-07 | E4: 250 | F4: 0.15 | G4: 0.8 | H4: =1.04*(E4/70)^1.55*(F4/0.01)^(-0.17)*G4^0.65 -> 4.083300748 | I4: 3988128.57 | J4: 0.1946308725 | K4: 0.03326400964 | L4: 0.1946307373 | M4: 1.351730052e-07 | O4: 0.04 | P4: 0.9221148358 | R4: C | S4: 2.3986 | T4: 1.3897 | W4: 0.2 | X4: =EXP(-EXP($T$1+$T$2*$T$3)*W4^(-$T$4)) -> 0.8734524641
A5: X0 | B5: kg/kg db | C5: 0.4 | E5: 200 | F5: 0.2 | G5: 0.5 | H5: =1.04*(E5/70)^1.55*(F5/0.01)^(-0.17)*G5^0.65 -> 2.02713781 | I5: 1545424.392 | J5: 0.243697479 | K5: 0.0369958345 | L5: 0.2436970418 | M5: 4.371684512e-07 | O5: 0.06 | P5: 0.8854774671 | W5: 0.3 | X5: 0.9258737493
O6: 0.08 | P6: 0.8502957705 | W6: 0.4 | X6: 0.9496734848
O7: 0.1 | P7: 0.8165119092 | W7: 0.5 | X7: =EXP(-EXP($T$1+$T$2*$T$3)*W7^(-$T$4)) -> 0.9628389158
O8: 0.12 | P8: 0.7840703448 | W8: 0.6 | X8: 0.9710345417
O9: 0.14 | P9: 0.7529177451 | W9: 0.7 | X9: 0.9765539448
O10: 0.16 | P10: 0.7230028972 | W10: 0.8 | X10: 0.9804859335
O11: 0.18 | P11: 0.6942766229 | W11: 0.9 | X11: 0.9834077498
O12: 0.2 | P12: 0.6666916979 | W12: 1 | X12: =EXP(-EXP($T$1+$T$2*$T$3)*W12^(-$T$4)) -> 0.9856513952
O13: 0.22 | P13: 0.6402027742 | W13: 1.1 | X13: 0.9874201719
O14: 0.24 | P14: 0.6147663056 | W14: 1.2 | X14: 0.988844927
O15: 0.26 | P15: 0.590340476 | W15: 1.3 | X15: 0.9900133576
O16: 0.28 | P16: 0.5668851309 | W16: 1.4 | X16: 0.9909862524
O17: 0.3 | P17: 0.5443617111 | W17: 1.5 | X17: 0.9918069614
O18: 0.32 | P18: 0.5227331894 | W18: 1.6 | X18: 0.9925071587
O19: 0.34 | P19: 0.5019640099 | W19: 1.7 | X19: 0.9931104794
O20: 0.36 | P20: 0.4820200291 | W20: 1.8 | X20: 0.9936348861
O21: 0.38 | P21: 0.4628684606 | W21: 1.9 | X21: 0.994094254
O22: 0.4 | P22: 0.44447782 | W22: 2 | X22: 0.9944994557
O23: 0.42 | P23: 0.4268178745 | W23: 2.1 | X23: 0.9948591215
O24: 0.44 | P24: 0.4098595921 | W24: 2.2 | X24: 0.9951801813
O25: 0.46 | P25: 0.3935750943 | W25: 2.3 | X25: 0.9954682585
O26: 0.48 | P26: 0.3779376104 | W26: 2.4 | X26: 0.9957279597
O27: 0.5 | P27: 0.3629214334 | W27: 2.5 | X27: 0.9959630914
O28: 0.52 | P28: 0.3485018776 | W28: 2.6 | X28: 0.9961768244
O29: 0.54 | P29: 0.334655238 | W29: 2.7 | X29: 0.9963718189
O30: 0.56 | P30: 0.3213587517 | W30: 2.8 | X30: 0.9965503221
O31: 0.58 | P31: 0.3085905599 | W31: 2.9 | X31: 0.9967142444
O32: 0.6 | P32: 0.2963296725 | W32: 3 | X32: 0.9968652189
O33: 0.62 | P33: 0.2845559334 | W33: 3.1 | X33: 0.9970046496
O34: 0.64 | P34: 0.2732499873 | W34: 3.2 | X34: 0.9971337494
O35: 0.66 | P35: 0.2623932479 | W35: 3.3 | X35: 0.9972535712
O36: 0.68 | P36: 0.2519678672 | W36: 3.4 | X36: 0.9973650331
O37: 0.7 | P37: 0.2419567067 | W37: 3.5 | X37: 0.9974689387
O38: 0.72 | P38: 0.2323433085 | W38: 3.6 | X38: 0.9975659944
O39: 0.74 | P39: 0.2231118688 | W39: 3.7 | X39: 0.9976568236
O40: 0.76 | P40: 0.2142472118 | W40: 3.8 | X40: 0.997741978
O41: 0.78 | P41: 0.2057347643 | W41: 3.9 | X41: 0.9978219475
O42: 0.8 | P42: 0.1975605325 | W42: 4 | X42: 0.9978971687
O43: 0.82 | P43: 0.1897110784 | W43: 4.1 | X43: 0.9979680319
O44: 0.84 | P44: 0.182173498 | W44: 4.2 | X44: 0.9980348866
O45: 0.86 | P45: 0.1749353999 | W45: 4.3 | X45: 0.998098047
O46: 0.88 | P46: 0.1679848852 | W46: 4.4 | X46: 0.9981577961
O47: 0.9 | P47: 0.1613105276 | W47: 4.5 | X47: 0.9982143894
O48: 0.92 | P48: 0.1549013548 | W48: 4.6 | X48: 0.9982680581
O49: 0.94 | P49: 0.1487468307 | W49: 4.7 | X49: 0.9983190122
O50: 0.96 | P50: 0.1428368374 | W50: 4.8 | X50: 0.9983674423
O51: 0.98 | P51: 0.1371616593 | W51: 4.9 | X51: 0.9984135222
O52: 1 | P52: 0.1317119669 | W52: 5 | X52: 0.9984574103

Sheet Munka2
A1: kritikus szigetelés számítás
A2: belső hőátadási tényező számítás (8.1.2.5.3. Sima falú, egyenes csőben (csatornában) történő áramlás) | M2: 145°C
A3: megnevezés | B3: jelölés | C3: érték | D3: mértékegység
A4: cső belső átmérő | B4: Dcs,b | C4: 1.2 | D4: m
A5: külső hőmérséklet | B5: Tam | C5: -10 | D5: °C
A6: belépő gáz hőmérséklet | B6: Tg,be | C6: 500 | D6: °C
A7: kilépő gáz hőmérséklet | B7: Tg,ki | C7: 100 | D7: °C
A8: gáz átlaghőmérséklet | B8: Tg,átl | C8: =(C6+C7)/2 -> 300 | D8: °C
A9: cső hosszúsága | B9: Lcs | C9: 12 | D9: m
A10: belépő gáz térfogatáram | B10: Vbe | C10: 5600 | D10: m3/h
A11: kilépő gáz térfogatáram | B11: Vki | C11: 3500 | D11: m3/h
A12: átlagos gáz térfogatáram | B12: Vátl | C12: =(C10+C11)/2 -> 4550 | D12: m3/h
A13: átlagos gázsebesség | B13: vg,átl | C13: =C12/3600/(C4^2*PI()/4) -> 1.117523134 | D13: m/s
A14: gáz átlagsűrűség | B14: rho,átl | C14: 0.617 | D14: kg/m3
A15: gáz fajhő | B15: cp,átl | C15: 1122 | D15: kJ/kg/K
A16: gáz dinamikus viszkozitás | B16: mu,átl | C16: 2.82e-05 | D16: Pas
A17: kinem. Viszk | B17: nu,átl | C17: 4.581e-05 | D17: m2/s
A18: gáz hővezetési tényező | B18: lam,átl | C18: 0.04254759926 | D18: W/m/K
A19: Prandtl-szám | B19: Pr | C19: =C16*C15/C18 -> 0.7436471282 | D19: -
A20: Reynolds-szám | B20: Re | C20: =C13*C4/C17 -> 29273.69049 | D20: -
A21: Nuparaméter | B21: kszi | C21: =(1.82*LOG10(C20)-1.64)^(-2) -> 0.02374903257 | D21: -
A22: Nusselt-szám | B22: Nu | C22: =(C21/8)*(C20-1000)*C19/(1+12.7*SQRT(C21/8)*(C19^(2/3)-1))*(1+(C4/C9)^(2/3)) -> 86.60261637 | D22: -
A23: belső hőátadási tényező | B23: alfa,b | C23: =C22*C18/C4 -> 3.07061118 | D23: W/m2/K
A24: belső hőátadási tényező számítás (8.1.1.1.4. HŐÁTADÁS IZOTERMIKUS VÍZSZINTES HENGER KÜLSŐ PALÁSTFELÜLETÉN)
A25: fal hőmérséklet | B25: Tw | C25: 30 | D25: °C
A26: mértékadó hőmérséklet | B26: Tm | C26: =(C25+C5)/2 -> 10 | D26: °C | E26: 145°C | F26: 15°C | J26: Tam (°C) | K26: 0 cm | L26: 10 cm | M26: 20 cm
A27: gáz átlagsűrűség | B27: rho,átl | C27: 1.2266 | D27: kg/m3 | E27: 0.844456 | F27: 1.2266 | J27: -15 | K27: 21 | L27: 7.3 | M27: 4.6
A28: gáz fajhő | B28: cp,átl | C28: 1006.625 | D28: kJ/kg/K | E28: 1017.407 | F28: 1006.625 | J28: -10 | K28: 20.4 | L28: 7.2 | M28: 4.5
A29: gáz dinamikus viszkozitás | B29: mu,átl | C29: 1.7984e-05 | D29: Pas | E29: 2.3857098e-05 | F29: 1.7984e-05 | J29: -5 | K29: 19.8 | L29: 7.1 | M29: 4.45
A30: kinem. Viszk | B30: nu,átl | C30: 1.46618e-05 | D30: m2/s | E30: 4.056133145e-05 | F30: 1.46618e-05 | J30: 0 | K30: 19.2 | L30: 7 | M30: 4.4
A31: gáz hővezetési tényező | B31: lam,átl | C31: 0.025308 | D31: W/m/K | E31: 0.03440546 | F31: 0.025308 | J31: 10 | K31: 17.6 | L31: 6.7 | M31: 4.25
A32: köbös hőtágulási együttható | B32: beta | C32: 0.003487533 | D32: 1/K | E32: 0.0023968247 | F32: 0.003487533 | J32: 20 | K32: 15.2 | L32: 6.3 | M32: 4.1
A33: Prandtl-szám | B33: Pr | C33: =C29*C28/C31 -> 0.7153131026 | D33: - | J33: 25 | K33: 13.2 | L33: 5.9 | M33: 3.9
A34: Rayleigh-szám | B34: Ra | C34: =9.81*C4^3*C32*(C26-C5)/(C30*(C31/C27/C28)) -> 3934473482 | D34: -
A35: Nusselt-szám | B35: Nu | C35: =(0.6+0.387*C34^(1/6)/(1+0.721/C33^(9/16))^(4/9))^2 -> 149.839318 | D35: -
A36: külső hőátadási tényező | B36: alfa,k | C36: =C35*C31/C4 -> 3.160111216 | D36: W/m2/K
A38: szigetelés hővezetési tényező | B38: lam,szig | C38: 0.04 | D38: W/m/K
A39: kritikus szigetelés átmérő | B39: dk,szig | C39: 0.2 | D39: m
A40: eredő hőellenállás1 | B40: R1 | C40: =1/(C4*PI()*C9*C23) -> 0.007198844761 | D40: K/W
A41: eredő hőellenállás2 | B41: R2 | C41: =LN(((C4+C39)/2)/(C4/2))/(2*C9*PI()*C38) -> 0.05111217224 | D41: K/W
A42: eredő hőellenállás3 | B42: R3 | C42: =1/((C39+C4)*PI()*C9*C36) -> 0.00599568045 | D42: K/W
A43: szummaR | B43: R | C43: =C40+C41+C42 -> 0.06430669745 | D43: K/W
A44: hőveszteség | B44: Q | C44: =(C8-C26)/C43/1000 -> 4.509639143 | D44: kW

Sheet Munka3
A1: Tlev (°C) | B1: Twb (°C) | C1: ill
A2: 80 | B2: 31.3 | C2: =0.382*A2+0.9 -> 31.46
A3: 70 | B3: 27.7 | C3: =0.382*A3+0.9 -> 27.64
A4: 60 | B4: 24 | C4: 23.82
A5: 50 | B5: 20.1 | C5: 20
A6: 40 | B6: 16 | C6: 16.18
A16: honap | D16: önfogy (kWth) | E16: korr
A17: jan | B17: 0.65 | C17: =B17-2 -> -1.35 | D17: 119.6 | E17: 141.8
A18: feb | B18: 2.95 | C18: =B18-2 -> 0.95 | D18: 141.8 | E18: 123.5
A19: mar | B19: 7 | C19: 5 | D19: 123.5 | E19: 122.5
A20: apr | B20: 13 | C20: 11 | D20: 44.8 | E20: 44.8
A21: maj | B21: 17.15 | C21: 15.15 | D21: 30.7 | E21: 30.7
A22: jun | D22: 2 | E22: 2
A23: jul | D23: 0 | E23: 0
A24: aug | D24: 0 | E24: 0
A25: sze | B25: 17.7 | C25: 15.7 | D25: 17.3 | E25: 17.3
A26: okt | B26: 11.7 | C26: 9.7 | D26: 61.1 | E26: 61.1
A27: nov | B27: 6.9 | C27: 4.9 | D27: 125.5 | E27: 123
A28: dec | B28: 1.98 | C28: -0.02 | D28: 138.8 | E28: 138.8
E30: ill.
A31: jan | B31: 0.65 | C31: =B31-2 -> -1.35 | D31: 141.8 | E31: =-0.1714*C31^2-5.0644*C31+137.77 -> 144.2945635
A32: dec | B32: 1.98 | C32: =B32-2 -> -0.02 | D32: 138.8 | E32: =-0.1714*C32^2-5.0644*C32+137.77 -> 137.8712194
A33: feb | B33: 2.95 | C33: 0.95 | D33: 123.5 | E33: 132.8041315
A34: nov | B34: 6.9 | C34: 4.9 | D34: 123 | E34: 108.839126
A35: mar | B35: 7 | C35: 5 | D35: 122.5 | E35: 108.163
A36: okt | B36: 11.7 | C36: 9.7 | D36: 61.1 | E36: 72.518294
A37: apr | B37: 13 | C37: 11 | D37: 44.8 | E37: 61.3222
A38: maj | B38: 17.15 | C38: 15.15 | D38: 30.7 | E38: 21.7041835
A39: sze | B39: 17.7 | C39: 15.7 | D39: 17.3 | E39: 16.010534
